fUSD/lending_fUSD_20240423
["ID","MTS","AMOUNT","RATE_DAILY","PERIOD"]
[323356812,1713911479776,-603.92,0.00012602,2]
[323356813,1713911479786,-640.47,0.00012602,2]
[323356814,1713911479795,-581.38,0.00012602,2]
[323356815,1713911479805,-578.77,0.00012602,2]
[323356816,1713911479814,-500.0,0.00012602,2]
[323356817,1713911479823,-268.05,0.00012602,2]
[323356818,1713911479832,-500.0,0.00012602,2]
[323356819,1713911479841,-500.0,0.00012602,2]
[323356820,1713911479850,-500.0,0.00012602,2]
[323356821,1713911479864,-500.0,0.00012602,2]
[323356822,1713911479874,-500.0,0.00012602,2]
[323356823,1713911479883,-500.0,0.00012602,2]
[323356824,1713911479893,-718.4,0.00012602,2]
[323356825,1713911479902,-500.0,0.00012602,2]
[323356826,1713911479911,-500.0,0.00012602,2]
[323356827,1713911479920,-500.0,0.00012602,2]
[323356828,1713911479930,-500.0,0.00012602,2]
[323356829,1713911479939,-500.0,0.00012602,2]
[323356830,1713911479948,-636.79,0.00012602,2]
[323356831,1713911479958,-671.8,0.00012602,2]
[323356832,1713911479967,-500.0,0.00012602,2]
[323356833,1713911479976,-500.0,0.00012602,2]
[323356834,1713911479985,-612.56,0.00012602,2]
[323356835,1713911479994,-500.0,0.00012602,2]
[323356836,1713911480004,-760.48,0.00012602,2]
[323356837,1713911480013,-500.0,0.00012602,2]
[323356838,1713911480023,-690.63,0.00012602,2]
[323356839,1713911480032,-819.43,0.00012602,2]
[323356840,1713911480041,-500.0,0.00012602,2]
[323356841,1713911480051,-500.0,0.00012602,2]
[323356842,1713911480060,-1120.66,0.00012602,2]
[323356843,1713911480070,-500.0,0.00012602,2]
[323356844,1713911480079,-500.0,0.00012602,2]
[323356845,1713911480088,-500.0,0.00012602,2]
[323356846,1713911480097,-500.0,0.00012602,2]
[323356847,1713911480106,-500.0,0.00012602,2]
[323356848,1713911480119,-611.78,0.00012602,2]
[323356849,1713911480128,-500.0,0.00012602,2]
[323356850,1713911480137,-689.76,0.00012602,2]
[323356851,1713911480147,-552.54,0.00012602,2]
[323356852,1713911480156,-500.0,0.00012602,2]
[323356853,1713911480166,-813.04,0.00012602,2]
[323356854,1713911480176,-508.89,0.00012602,2]
[323356855,1713911480186,-500.0,0.00012602,2]
[323356856,1713911480196,-500.0,0.00012602,2]
[323356857,1713911480205,-500.0,0.00012602,2]
[323356858,1713911480214,-615.32,0.00012602,2]
[323356859,1713911480225,-500.0,0.00012602,2]
[323356860,1713911480234,-615.81,0.00012602,2]
[323356861,1713911480244,-520.08219485,0.00012602,2]
[323356862,1713911480253,-657.5,0.00012602,2]
[323356863,1713911480263,-500.0,0.00012602,2]
[323356864,1713911480273,-809.84,0.00012602,2]
[323356865,1713911480282,-500.0,0.00012602,2]
[323356866,1713911480291,-723.02,0.00012602,2]
[323356867,1713911480300,-538.09,0.00012602,2]
[323356868,1713911480309,-500.0,0.00012602,2]
[323356869,1713911480319,-500.0,0.00012602,2]
[323356870,1713911480328,-754.92,0.00012602,2]
[323356871,1713911480338,-623.66,0.00012602,2]
[323356872,1713911480347,-608.92,0.00012602,2]
[323356873,1713911480356,-258.95,0.00012602,2]
[323356874,1713911480367,-588.64,0.00012602,2]
[323356875,1713911480376,-500.0,0.00012602,2]
[323356876,1713911480386,-500.0,0.00012602,2]
[323356877,1713911480394,-500.0,0.00012602,2]
[323356878,1713911480404,-864.73,0.00012602,2]
[323356879,1713911480414,-558.04,0.00012602,2]
[323356880,1713911480423,-500.0,0.00012602,2]
[323356881,1713911480432,-500.0,0.00012602,2]
[323356882,1713911480441,-793.86,0.00012602,2]
[323356883,1713911480450,-1163.1,0.00012602,2]
[323356884,1713911480460,-598.7,0.00012602,2]
[323356885,1713911480469,-500.0,0.00012602,2]
[323356886,1713911480478,-781.1,0.00012602,2]
[323356887,1713911480624,-722.28,0.00012602,2]
[323356888,1713911480635,-607.45,0.00012602,2]
[323356889,1713911480646,-603.49,0.00012602,2]
[323356890,1713911480656,-500.0,0.00012602,2]
[323356891,1713911480667,-900.43,0.00012602,2]
[323356892,1713911480677,-500.0,0.00012602,2]
[323356893,1713911480688,-959.57,0.00012602,2]
[323356894,1713911480698,-500.0,0.00012602,2]
[323356895,1713911480710,-500.0,0.00012602,2]
[323356896,1713911480720,-832.71,0.00012602,2]
[323356897,1713911480729,-779.76,0.00012602,2]
[323356898,1713911480738,-500.0,0.00012602,2]
[323356899,1713911480748,-500.0,0.00012602,2]
[323356900,1713911480758,-524.17,0.00012602,2]
[323356901,1713911480767,-506.08,0.00012602,2]
[323356902,1713911480776,-500.0,0.00012602,2]
[323356903,1713911480786,-500.0,0.00012602,2]
[323356904,1713911480795,-500.0,0.00012602,2]
[323356905,1713911480805,-850.09,0.00012602,2]
[323356906,1713911480814,-500.0,0.00012602,2]
[323356907,1713911480823,-574.71,0.00012602,2]
[323356908,1713911480833,-1818.13,0.00012602,2]
[323356909,1713911480842,-538.96,0.00012602,2]
[323356910,1713911480852,-317.46,0.00012602,2]
[323356911,1713911480861,-500.0,0.00012602,2]
[323356912,1713911480871,-544.02,0.00012602,2]
[323356913,1713911480881,-500.0,0.00012602,2]
[323356914,1713911480890,-500.0,0.00012602,2]
[323356915,1713911480899,-500.0,0.00012602,2]
[323356916,1713911480908,-926.84,0.00012602,2]
[323356917,1713911480918,-518.0,0.00012602,2]
[323356918,1713911480927,-575.89,0.00012602,2]
[323356919,1713911480937,-500.0,0.00012602,2]
[323356920,1713911480946,-571.09,0.00012602,2]
[323356921,1713911480956,-652.79,0.00012602,2]
[323356922,1713911480965,-545.49,0.00012602,2]
[323356923,1713911480975,-500.0,0.00012602,2]
[323356924,1713911480984,-241.75,0.00012602,2]
[323356925,1713911480993,-525.42,0.00012602,2]
[323356926,1713911481002,-500.0,0.00012602,2]
[323356927,1713911481012,-948.71,0.00012602,2]
[323356928,1713911481021,-500.0,0.00012602,2]
[323356929,1713911481030,-500.0,0.00012602,2]
[323356930,1713911481040,-500.0,0.00012602,2]
[323356931,1713911481049,-535.31,0.00012602,2]
[323356932,1713911481058,-769.52,0.00012602,2]
[323356933,1713911481067,-500.0,0.00012602,2]
[323356934,1713911481077,-500.0,0.00012602,2]
[323356935,1713911481086,-500.0,0.00012602,2]
[323356936,1713911481095,-523.96,0.00012602,2]
[323356937,1713911481104,-658.98,0.00012602,2]
[323356938,1713911481114,-1506.0,0.000127,2]
[323356939,1713911481123,-738.55194264,0.00012714,2]
[323356940,1713911481133,-935.13,0.00012739,2]
[323356941,1713911481143,-758.32,0.00012823,2]
[323356942,1713911481152,-918.0,0.00012867,2]
[323356943,1713911481162,-172.68675684,0.00012869,2]
[323356944,1713911481171,-500.0,0.00012876,2]
[323356945,1713911481180,-500.0,0.00012876,2]
[323356946,1713911481190,-500.0,0.00012876,2]
[323356947,1713911481199,-405.86261056,0.00012876,2]
[323356948,1713911481208,-500.0,0.00012876,2]
[323356949,1713911481218,-500.0,0.00012876,2]
[323356950,1713911481227,-540.26295682,0.00012876,2]
[323356951,1713911481236,-500.0,0.00012876,2]
[323356952,1713911481245,-500.0,0.00012876,2]
[323356953,1713911481255,-500.0,0.00012876,2]
[323356954,1713911481264,-500.0,0.00012876,2]
[323356955,1713911481273,-516.99,0.00012876,2]
[323356956,1713911481282,-538.28,0.00012876,2]
[323356957,1713911481292,-500.0,0.00012876,2]
[323356958,1713911481301,-500.0,0.00012876,2]
[323356959,1713911481310,-500.0,0.00012876,2]
[323356960,1713911481319,-500.0,0.00012876,2]
[323356961,1713911481328,-500.0,0.00012876,2]
[323356962,1713911481338,-500.0,0.00012876,2]
[323356963,1713911481347,-500.0,0.00012876,2]
[323356964,1713911481357,-500.0,0.00012876,2]
[323356965,1713911481367,-500.0,0.00012876,2]
[323356966,1713911481377,-500.0,0.00012876,2]
[323356967,1713911481386,-500.0,0.00012876,2]
[323356968,1713911481396,-574.26,0.00012876,2]
[323356969,1713911481405,-500.0,0.00012876,2]
[323356970,1713911481414,-500.0,0.00012876,2]
[323356971,1713911481423,-500.0,0.00012876,2]
[323356972,1713911481433,-504.77,0.00012876,2]
[323356973,1713911481441,-500.0,0.00012876,2]
[323356974,1713911481451,-500.0,0.00012876,2]
[323356975,1713911481460,-500.0,0.00012876,2]
[323356976,1713911481469,-510.42,0.00012876,2]
[323356977,1713911481478,-500.0,0.00012876,2]
[323356978,1713911481487,-621.11,0.00012876,2]
[323356979,1713911481497,-500.0,0.00012876,2]
[323356980,1713911481506,-500.0,0.00012876,2]
[323356981,1713911481522,-500.0,0.00012876,2]
[323356982,1713911481541,-500.0,0.00012876,2]
[323356983,1713911481557,-524.48,0.00012876,2]
[323356984,1713911481575,-500.0,0.00012876,2]
[323356985,1713911481592,-500.0,0.00012876,2]
[323356986,1713911481609,-500.0,0.00012876,2]
[323356987,1713911481632,-611.27,0.00012876,2]
[323356988,1713911481648,-571.32,0.00012876,2]
[323356989,1713911481669,-526.94,0.00012876,2]
[323356990,1713911481684,-671.93,0.00012876,2]
[323356991,1713911481705,-500.0,0.00012876,2]
[323356992,1713911481723,-150.0,0.00012876,2]
[323356993,1713911481739,-500.0,0.00012876,2]
[323356994,1713911481754,-500.0,0.00012876,2]
[323356995,1713911481771,-500.0,0.00012876,2]
[323356996,1713911481785,-263.43266407,0.00012876,2]
[323356997,1713911481801,-456.56,0.00012876,2]
[323356998,1713911481816,-500.0,0.00012876,2]
[323356999,1713911481832,-500.0,0.00012876,2]
[323357000,1713911481848,-500.0,0.00012876,2]
[323357001,1713911481863,-669.6,0.00012876,2]
[323357002,1713911481879,-500.0,0.00012876,2]
[323357003,1713911481894,-500.0,0.00012876,2]
[323357004,1713911481909,-600.39865122,0.00012876,2]
[323357005,1713911481924,-599.5,0.00012876,2]
[323357006,1713911481938,-500.0,0.00012876,2]
[323357007,1713911481953,-500.0,0.00012876,2]
[323357008,1713911481968,-500.0,0.00012876,2]
[323357009,1713911481983,-500.0,0.00012876,2]
[323357010,1713911481998,-500.0,0.00012876,2]
[323357011,1713911482012,-500.0,0.00012876,2]
[323357012,1713911482027,-500.0,0.00012876,2]
[323357013,1713911482043,-500.0,0.00012876,2]
[323357014,1713911482058,-500.0,0.00012876,2]
[323357015,1713911482073,-500.0,0.00012876,2]
[323357016,1713911482087,-500.0,0.00012876,2]
[323357017,1713911482102,-510.75,0.00012876,2]
[323357018,1713911482118,-500.0,0.00012876,2]
[323357019,1713911482132,-500.0,0.00012876,2]
[323357020,1713911482148,-500.67,0.00012876,2]
[323357021,1713911482162,-500.0,0.00012876,2]
[323357022,1713911482177,-500.0,0.00012876,2]
[323357023,1713911482194,-646.0,0.00012876,2]
[323357024,1713911482210,-500.0,0.00012876,2]
[323357025,1713911482225,-500.0,0.00012876,2]
[323357026,1713911482240,-652.09,0.00012876,2]
[323357027,1713911482254,-500.0,0.00012876,2]
[323357028,1713911482268,-500.0,0.00012876,2]
[323357029,1713911482282,-500.0,0.00012876,2]
[323357030,1713911482296,-573.05,0.00012876,2]
[323357031,1713911482311,-500.0,0.00012876,2]
[323357032,1713911482325,-351.3870881,0.00012876,2]
[323357033,1713911482340,-536.54,0.00012876,2]
[323357034,1713911482355,-155.880502,0.00012876,2]
[323357035,1713911482370,-500.0,0.00012876,2]
[323357036,1713911482384,-500.0,0.00012876,2]
[323357037,1713911482399,-559.0,0.00012876,2]
[323357038,1713911482416,-500.0,0.00012876,2]
[323357039,1713911482430,-500.0,0.00012876,2]
[323357040,1713911482445,-500.0,0.00012876,2]
[323357041,1713911482460,-500.0,0.00012876,2]
[323357042,1713911482475,-559.06,0.00012876,2]
[323357043,1713911482490,-500.0,0.00012876,2]
[323357044,1713911482507,-500.0,0.00012876,2]
[323357045,1713911482522,-710.86,0.00012876,2]
[323357046,1713911482538,-500.0,0.00012876,2]
[323357047,1713911482553,-500.0,0.00012876,2]
[323357048,1713911482568,-500.0,0.00012876,2]
[323357049,1713911482583,-500.0,0.00012876,2]
[323357050,1713911482597,-500.0,0.00012876,2]
[323357051,1713911482612,-500.0,0.00012876,2]
[323357052,1713911482630,-500.0,0.00012876,2]
[323357053,1713911482646,-500.0,0.00012876,2]
[323357054,1713911482661,-614.5,0.00012876,2]
[323357055,1713911482675,-851.18,0.00012876,2]
[323357056,1713911482691,-525.79,0.00012876,2]
[323357057,1713911482707,-501.0,0.00012876,2]
[323357058,1713911482721,-649.77,0.00012876,2]
[323357059,1713911482736,-500.0,0.00012876,2]
[323357060,1713911482751,-273.44,0.00012876,2]
[323357061,1713911482765,-500.0,0.00012876,2]
[323357062,1713911482780,-500.0,0.00012876,2]
[323357063,1713911482795,-500.0,0.00012876,2]
[323357064,1713911482809,-735.82,0.00012876,2]
[323357065,1713911482824,-318.16611606,0.00012876,2]
[323357066,1713911482839,-560.41,0.00012876,2]
[323357067,1713911482853,-500.0,0.00012876,2]
[323357068,1713911482868,-500.0,0.00012876,2]
[323357069,1713911482884,-500.0,0.00012876,2]
[323357070,1713911482899,-228.48,0.00012876,2]
[323357071,1713911482913,-500.0,0.00012876,2]
[323357072,1713911483098,-500.0,0.00012876,2]
[323357073,1713911483111,-500.0,0.00012876,2]
[323357074,1713911483122,-500.0,0.00012876,2]
[323357075,1713911483131,-618.52,0.00012876,2]
[323357076,1713911483140,-500.0,0.00012876,2]
[323357077,1713911483150,-500.0,0.00012876,2]
[323357078,1713911483158,-500.0,0.00012876,2]
[323357079,1713911483168,-500.0,0.00012876,2]
[323357080,1713911483177,-500.0,0.00012876,2]
[323357081,1713911483186,-500.0,0.00012876,2]
[323357082,1713911483195,-560.97,0.00012876,2]
[323357083,1713911483204,-643.17,0.00012876,2]
[323357084,1713911483214,-755.83,0.00012876,2]
[323357085,1713911483222,-605.85,0.00012876,2]
[323357086,1713911483231,-500.0,0.00012876,2]
[323357087,1713911483240,-614.41,0.00012876,2]
[323357088,1713911483248,-500.0,0.00012876,2]
[323357089,1713911483257,-500.0,0.00012876,2]
[323357090,1713911483266,-539.16,0.00012876,2]
[323357091,1713911483275,-500.0,0.00012876,2]
[323357092,1713911483285,-500.0,0.00012876,2]
[323357093,1713911483294,-500.0,0.00012876,2]
[323357094,1713911483303,-500.0,0.00012876,2]
[323357095,1713911483312,-690.34,0.00012876,2]
[323357096,1713911483321,-777.41,0.00012876,2]
[323357097,1713911483330,-500.0,0.00012876,2]
[323357098,1713911483339,-500.0,0.00012876,2]
[323357099,1713911483348,-203.36,0.00012876,2]
[323357100,1713911483357,-660.91,0.00012876,2]
[323357101,1713911483367,-569.39,0.00012876,2]
[323357102,1713911483376,-224.04,0.00012876,2]
[323357103,1713911483386,-638.29,0.00012876,2]
[323357104,1713911483396,-500.1,0.00012876,2]
[323357105,1713911483405,-500.0,0.00012876,2]
[323357106,1713911483414,-500.0,0.00012876,2]
[323357107,1713911483423,-500.0,0.00012876,2]
[323357108,1713911483433,-500.0,0.00012876,2]
[323357109,1713911483443,-842.1,0.00012876,2]
[323357110,1713911483452,-500.0,0.00012876,2]
[323357111,1713911483462,-500.0,0.00012876,2]
[323357112,1713911483471,-500.0,0.00012876,2]
[323357113,1713911483481,-500.0,0.00012876,2]
[323357114,1713911483490,-500.0,0.00012876,2]
[323357115,1713911483499,-500.0,0.00012876,2]
[323357116,1713911483508,-701.43,0.00012876,2]
[323357117,1713911483518,-562.67,0.00012876,2]
[323357118,1713911483528,-501.72,0.00012876,2]
[323357119,1713911483538,-500.0,0.00012876,2]
[323357120,1713911483548,-535.48,0.00012876,2]
[323357121,1713911483558,-500.0,0.00012876,2]
[323357122,1713911483569,-569.5,0.00012876,2]
[323357123,1713911483578,-500.0,0.00012876,2]
[323357124,1713911483588,-500.0,0.00012876,2]
[323357125,1713911483597,-714.74,0.00012876,2]
[323357126,1713911483607,-500.0,0.00012876,2]
[323357127,1713911483621,-599.66,0.00012876,2]
[323357128,1713911483631,-564.61,0.00012876,2]
[323357129,1713911483641,-500.0,0.00012876,2]
[323357130,1713911483651,-761.53,0.00012876,2]
[323357131,1713911483662,-500.0,0.00012876,2]
[323357132,1713911483672,-500.0,0.00012876,2]
[323357133,1713911483682,-500.0,0.00012876,2]
[323357134,1713911483692,-651.78,0.00012876,2]
[323357135,1713911483703,-500.0,0.00012876,2]
[323357136,1713911483713,-874.99,0.00012876,2]
[323357137,1713911483723,-727.47,0.00012876,2]
[323357138,1713911483732,-607.09,0.00012876,2]
[323357139,1713911483741,-500.0,0.00012876,2]
[323357140,1713911483751,-500.0,0.00012876,2]
[323357141,1713911483760,-805.58,0.00012876,2]
[323357142,1713911483769,-748.61,0.00012876,2]
[323357143,1713911483779,-500.0,0.00012876,2]
[323357144,1713911483789,-670.8,0.00012876,2]
[323357145,1713911483798,-883.26,0.00012876,2]
[323357146,1713911483807,-500.0,0.00012876,2]
[323357147,1713911483816,-231.1,0.00012876,2]
[323357148,1713911483825,-589.11,0.00012876,2]
[323357149,1713911483835,-500.0,0.00012876,2]
[323357150,1713911483844,-500.0,0.00012876,2]
[323357151,1713911483853,-753.29,0.00012876,2]
[323357152,1713911483862,-500.0,0.00012876,2]
[323357153,1713911483872,-595.34,0.00012876,2]
[323357154,1713911483881,-712.53,0.00012876,2]
[323357155,1713911483890,-527.26,0.00012876,2]
[323357156,1713911483900,-500.0,0.00012876,2]
[323357157,1713911483909,-711.68,0.00012876,2]
[323357158,1713911483919,-538.67,0.00012876,2]
[323357159,1713911483928,-500.0,0.00012876,2]
[323357160,1713911483938,-500.0,0.00012876,2]
[323357161,1713911483948,-630.35,0.00012876,2]
[323357162,1713911483958,-500.0,0.00012876,2]
[323357163,1713911483967,-591.67,0.00012876,2]
[323357164,1713911483977,-500.0,0.00012876,2]
[323357165,1713911483987,-500.0,0.00012876,2]
[323357166,1713911483998,-711.27,0.00012876,2]
[323357167,1713911484008,-720.29,0.00012876,2]
[323357168,1713911484018,-500.0,0.00012876,2]
[323357169,1713911484027,-500.0,0.00012876,2]
[323357170,1713911484037,-500.0,0.00012876,2]
[323357171,1713911484048,-599.61817048,0.00012876,2]
[323357172,1713911484059,-500.0,0.00012876,2]
[323357173,1713911484070,-358.72,0.00012876,2]
[323357174,1713911484079,-859.67,0.00012876,2]
[323357175,1713911484087,-500.0,0.00012876,2]
[323357176,1713911484097,-500.0,0.00012876,2]
[323357177,1713911484107,-522.07,0.00012876,2]
[323357178,1713911484119,-500.0,0.00012876,2]
[323357179,1713911484128,-564.6,0.00012876,2]
[323357180,1713911484138,-826.14,0.00012876,2]
[323357181,1713911484148,-544.56,0.00012876,2]
[323357182,1713911484157,-500.0,0.00012876,2]
[323357183,1713911484167,-500.0,0.00012876,2]
[323357184,1713911484177,-603.92,0.00012876,2]
[323357185,1713911484186,-640.47,0.00012876,2]
[323357186,1713911484196,-581.38,0.00012876,2]
[323357187,1713911484206,-578.77,0.00012876,2]
[323357188,1713911484215,-500.0,0.00012876,2]
[323357189,1713911484225,-500.0,0.00012876,2]
[323357190,1713911484234,-500.0,0.00012876,2]
[323357191,1713911484244,-500.0,0.00012876,2]
[323357192,1713911484253,-500.0,0.00012876,2]
[323357193,1713911484263,-197.49488741,0.00012876,2]
[323357194,1713911484273,-500.0,0.00012876,2]
[323357195,1713911484283,-718.4,0.00012876,2]
[323357196,1713911484293,-500.0,0.00012876,2]
[323357197,1713911484303,-500.0,0.00012876,2]
[323357198,1713911484312,-500.0,0.00012876,2]
[323357199,1713911484322,-500.0,0.00012876,2]
[323357200,1713911484332,-500.0,0.00012876,2]
[323357201,1713911484341,-636.79,0.00012876,2]
[323357202,1713911484351,-671.8,0.00012876,2]
[323357203,1713911484361,-366.43,0.00012876,2]
[323357204,1713911484371,-500.0,0.00012876,2]
[323357205,1713911484381,-612.56,0.00012876,2]
[323357206,1713911484390,-500.0,0.00012876,2]
[323357207,1713911484399,-760.48,0.00012876,2]
[323357208,1713911484408,-500.0,0.00012876,2]
[323357209,1713911484417,-690.63,0.00012876,2]
[323357210,1713911484427,-819.43,0.00012876,2]
[323357211,1713911484436,-500.0,0.00012876,2]
[323357212,1713911484446,-500.0,0.00012876,2]
[323357213,1713911484455,-1120.66,0.00012876,2]
[323357214,1713911484465,-500.0,0.00012876,2]
[323357215,1713911484474,-500.0,0.00012876,2]
[323357216,1713911484483,-500.0,0.00012876,2]
[323357217,1713911484493,-500.0,0.00012876,2]
[323357218,1713911484502,-500.0,0.00012876,2]
[323357219,1713911484512,-611.78,0.00012876,2]
[323357220,1713911484522,-500.0,0.00012876,2]
[323357221,1713911484531,-689.76,0.00012876,2]
[323357222,1713911484541,-552.54,0.00012876,2]
[323357223,1713911484551,-500.0,0.00012876,2]
[323357224,1713911484560,-813.04,0.00012876,2]
[323357225,1713911484570,-508.89,0.00012876,2]
[323357226,1713911484580,-500.0,0.00012876,2]
[323357227,1713911484590,-500.0,0.00012876,2]
[323357228,1713911484599,-500.0,0.00012876,2]
[323357229,1713911484609,-615.32,0.00012876,2]
[323357230,1713911484622,-500.0,0.00012876,2]
[323357231,1713911484631,-615.81,0.00012876,2]
[323357232,1713911484640,-657.5,0.00012876,2]
[323357233,1713911484650,-500.0,0.00012876,2]
[323357234,1713911484659,-809.84,0.00012876,2]
[323357235,1713911484670,-500.0,0.00012876,2]
[323357236,1713911484679,-723.02,0.00012876,2]
[323357237,1713911484689,-538.09,0.00012876,2]
[323357238,1713911484700,-500.0,0.00012876,2]
[323357239,1713911484710,-500.0,0.00012876,2]
[323357240,1713911484720,-754.92,0.00012876,2]
[323357241,1713911484729,-623.66,0.00012876,2]
[323357242,1713911484739,-608.92,0.00012876,2]
[323357243,1713911484749,-588.64,0.00012876,2]
[323357244,1713911484758,-500.0,0.00012876,2]
[323357245,1713911484768,-500.0,0.00012876,2]
[323357246,1713911484777,-500.0,0.00012876,2]
[323357247,1713911484787,-864.73,0.00012876,2]
[323357248,1713911484797,-558.04,0.00012876,2]
[323357249,1713911484806,-500.0,0.00012876,2]
[323357250,1713911484816,-500.0,0.00012876,2]
[323357251,1713911484826,-793.86,0.00012876,2]
[323357252,1713911484836,-1163.1,0.00012876,2]
[323357253,1713911484845,-500.0,0.00012876,2]
[323357254,1713911484855,-781.1,0.00012876,2]
[323357255,1713911484864,-722.28,0.00012876,2]
[323357256,1713911484875,-607.45,0.00012876,2]
[323357257,1713911484884,-603.49,0.00012876,2]
[323357258,1713911484894,-500.0,0.00012876,2]
[323357259,1713911484903,-900.43,0.00012876,2]
[323357260,1713911484912,-500.0,0.00012876,2]
[323357261,1713911484921,-959.57,0.00012876,2]
[323357262,1713911484930,-500.0,0.00012876,2]
[323357263,1713911484939,-500.0,0.00012876,2]
[323357264,1713911484949,-832.71,0.00012876,2]
[323357265,1713911484958,-779.76,0.00012876,2]
[323357266,1713911484967,-500.0,0.00012876,2]
[323357267,1713911484976,-500.0,0.00012876,2]
[323357268,1713911484986,-524.17,0.00012876,2]
[323357269,1713911484995,-506.08,0.00012876,2]
[323357270,1713911485005,-500.0,0.00012876,2]
[323357271,1713911485014,-500.0,0.00012876,2]
[323357272,1713911485023,-500.0,0.00012876,2]
[323357273,1713911485033,-850.09,0.00012876,2]
[323357274,1713911485042,-500.0,0.00012876,2]
[323357275,1713911485052,-574.71,0.00012876,2]
[323357276,1713911485061,-1818.13,0.00012876,2]
[323357277,1713911485071,-538.96,0.00012876,2]
[323357278,1713911485208,-500.0,0.00012876,2]
[323357279,1713911485218,-544.02,0.00012876,2]
[323357280,1713911485228,-500.0,0.00012876,2]
[323357281,1713911485238,-500.0,0.00012876,2]
[323357282,1713911485248,-500.0,0.00012876,2]
[323357283,1713911485257,-926.84,0.00012876,2]
[323357284,1713911485268,-518.0,0.00012876,2]
[323357285,1713911485277,-575.89,0.00012876,2]
[323357286,1713911485287,-500.0,0.00012876,2]
[323357287,1713911485297,-571.09,0.00012876,2]
[323357288,1713911485306,-652.79,0.00012876,2]
[323357289,1713911485316,-545.49,0.00012876,2]
[323357290,1713911485326,-500.0,0.00012876,2]
[323357291,1713911485335,-525.42,0.00012876,2]
[323357292,1713911485345,-500.0,0.00012876,2]
[323357293,1713911485355,-948.71,0.00012876,2]
[323357294,1713911485364,-500.0,0.00012876,2]
[323357295,1713911485375,-500.0,0.00012876,2]
[323357296,1713911485385,-500.0,0.00012876,2]
[323357297,1713911485396,-535.31,0.00012876,2]
[323357298,1713911485405,-769.52,0.00012876,2]
[323357299,1713911485415,-500.0,0.00012876,2]
[323357300,1713911485424,-500.0,0.00012876,2]
[323357301,1713911485434,-500.0,0.00012876,2]
[323357302,1713911485443,-523.96,0.00012876,2]
[323357303,1713911485453,-1000.0,0.00012895,2]
[323357304,1713911485462,-500.0,0.00012895,2]
[323357305,1713911485472,-1000.0,0.00012896,2]
[323357306,1713911485482,-500.0,0.00012896,2]
[323357307,1713911485492,-500.0,0.00012896,2]
[323357308,1713911485501,-738.55194264,0.000129,2]
[323357309,1713911485511,-211.89160026,0.000129,2]
[323357310,1713911485520,-244.23920997,0.000129,2]
[323357311,1713911485530,-195.0,0.00012954,2]